Workbook

Sheet INFORME 1
A1: AMERICA MOVIL PERU S.A.C.
A3: INFORME 1: RECONCILIACIÓN DEL ESTADO DE LA SITUACIÓN FINANCIERA ESTATUARIO CON EL DE CONTABILIDAD SEPARADA
A5: Periodo de reporte: Enero a Diciembre 2016
A7: Expresado en Miles de Nuevos Soles | B7: Código Plan Contable | C7: Código PCR | D7: Estado de Situación Financiera Estatuaria | E7: Ajustes | F7: Estado de Situación Financiera de Contabilidad Separada | G7: Número de nota 1/.
A8: ACTIVO CORRIENTE | D8: =D9+D10+D11+D12+D13 -> 1591120.189 | E8: =E9+E10+E11+E12+E13 -> -1500.20638 | F8: =F9+F10+F11+F12+F13 -> 1589619.982
A9: Efectivo y equivalentes de efectivo | B9: 10 | C9: 10 | D9: 50118.50229 | E9: 0 | F9: 50118.50229
A10: Cuentas por cobrar a terceros, neto | B10: 12 | C10: 12 | D10: 922017.7222 | E10: -1499.20638 | F10: 920518.5159
A11: Cuentas por cobrar a la principal y vinculadas | B11: 13 | C11: 13 | D11: 31656.44466 | E11: -1 | F11: 31655.44466
A12: Existencias, neto | B12: 20 | C12: 20 | D12: 464163.515 | E12: 0 | F12: 464163.515
A13: Impuesto y gastos pagados anticipado | B13: 40 | C13: 40 | D13: 123164.0045 | E13: 0 | F13: 123164.0045
A14: ACTIVO NO CORRIENTE | D14: =+D15+D16+D57+D64+D65+D112+D113 -> 7473942.24 | E14: =+E15+E16+E57+E64+E65+E112+E113 -> -3262096.073 | F14: =+F15+F16+F57+F64+F65+F112+F113 -> 4211846.167
A15: Inversiones | B15: 30 | C15: 30 | D15: 2932896.252 | E15: -2932896.252 | F15: 0
A16: Activo Fijo Bruto | B16: NOTA1 | C16: 30 | D16: =+D17+D49 -> 5349312.153 | E16: =+E17+E49 -> -1012715.323 | F16: =+F17+F49 -> 4336596.829 | G16: 1
A17: Planta y Equipo de Comunicaciones | B17: NOTA1 | C17: 301 | D17: =+D18+D26+D27+D36+D43 -> 4079258.178 | E17: =+E18+E26+E27+E36+E43 -> -1248748.51 | F17: =+F18+F26+F27+F36+F43 -> 2830509.667 | G17: 1
A18: Equipos terminales | B18: NOTA1 | C18: 3011 | D18: =+D19+D20+D21+D22+D23+D24+D25 -> 725892.7341 | E18: =+E19+E20+E21+E22+E23+E24+E25 -> -53379.29654 | F18: =+F19+F20+F21+F22+F23+F24+F25 -> 672513.4376 | G18: 1
A19: Equipos terminales -Teléfonos de Abonados | B19: NOTA1 | C19: 30111 | D19: 11817.37749 | E19: -699.6822891 | F19: 11117.6952 | G19: 1
A20: Equipos terminales -Teléfonos Públicos | B20: NOTA1 | C20: 30112 | D20: 70143.78847 | E20: -4142.761924 | F20: 66001.02655 | G20: 1
A21: Equipos Terminales -Televisión de Paga | B21: NOTA1 | C21: 30113 | D21: 159015.9507 | E21: -10635.91105 | F21: 148380.0396 | G21: 1
A22: Equipos Terminales -Internet Fijo | B22: NOTA1 | C22: 30114 | D22: 468630.4328 | E22: -37994.14903 | F22: 430636.2838 | G22: 1
A23: Equipos Terminales -Telefonía Móvil | B23: NOTA1 | C23: 30115 | D23: 16285.18465 | E23: 93.20775 | F23: 16378.3924 | G23: 1
A24: Equipos Terminales -Internet Móvil | B24: NOTA1 | C24: 30116 | D24: 0 | E24: 0 | F24: 0 | G24: 1
A25: Otros Equipos Terminales | B25: NOTA1 | C25: 30117 | D25: 0 | E25: 0 | F25: 0 | G25: 1
A26: Planta y Equipo de Acceso Local | B26: NOTA1 | C26: 3012 | D26: 197225.1238 | E26: -3822.894861 | F26: 193402.2289 | G26: 1
A27: Equipos Centrales y de agregación | B27: NOTA1 | C27: 3013 | D27: =+D28+D29+D30+D31+D32+D33+D34+D35 -> 328336.5432 | E27: =+E28+E29+E30+E31+E32+E33+E34+E35 -> -32629.2067 | F27: =+F28+F29+F30+F31+F32+F33+F34+F35 -> 295707.3365 | G27: 1
A28: Centrales Locales | B28: NOTA1 | C28: 30131 | D28: 0 | E28: 0 | F28: 0 | G28: 1
A29: Centrales de Larga Distancia Nacional | B29: NOTA1 | C29: 30132 | D29: 47332.79286 | E29: -7206.260929 | F29: 40126.53193 | G29: 1
A30: Centrales de Larga Distancia Internacional | B30: NOTA1 | C30: 30133 | D30: 829.3305185 | E30: -126.2628244 | F30: 703.0676941 | G30: 1
A31: Controladores | B31: NOTA1 | C31: 30134 | D31: 68656.9985 | E31: -3554.012253 | F31: 65102.98625 | G31: 1
A32: Gateways | B32: NOTA1 | C32: 30135 | D32: 6109.06765 | E32: -763.2845182 | F32: 5345.783132 | G32: 1
A33: Cabeceras | B33: NOTA1 | C33: 30136 | D33: 14207.13799 | E33: -782.5752594 | F33: 13424.56273 | G33: 1
A34: Transmisión de Datos (Servicio Final) | B34: NOTA1 | C34: 30137 | D34: 191201.2157 | E34: -20196.81092 | F34: 171004.4048 | G34: 1
A35: Otros equipos centrales | B35: NOTA1 | C35: 30138 | D35: 0 | E35: 0 | F35: 0 | G35: 1
A36: Transmisión (Gran capacidad) | B36: NOTA1 | C36: 3014 | D36: =+D37+D38+D39+D40+D41+D42 -> 1085245.636 | E36: =+E37+E38+E39+E40+E41+E42 -> -70718.02835 | F36: =+F37+F38+F39+F40+F41+F42 -> 1014527.608 | G36: 1
A37: Cables de Transmisión (excluidos internacional) | B37: NOTA1 | C37: 30141 | D37: 488540.5776 | E37: -22192.23041 | F37: 466348.3471 | G37: 1
A38: Equipos de Transmisión (excluidos internacional) | B38: NOTA1 | C38: 30142 | D38: 259301.9553 | E38: -18092.27183 | F38: 241209.6835 | G38: 1
A39: Equipos de Transmisión Radio | B39: NOTA1 | C39: 30143 | D39: 251097.3299 | E39: -23280.19662 | F39: 227817.1333 | G39: 1
A40: Equipos de Transmisión por Satélite | B40: NOTA1 | C40: 30144 | D40: 41517.21529 | E40: -6778.118559 | F40: 34739.09673 | G40: 1
A41: Cables y Equipos internacionales (excluyendo satélite) | B41: NOTA1 | C41: 30145 | D41: 2785.820427 | E41: -168.8348915 | F41: 2616.985535 | G41: 1
A42: Otros equipos de transmisión | B42: NOTA1 | C42: 30146 | D42: 42002.73783 | E42: -206.3760351 | F42: 41796.36179 | G42: 1
A43: Otros Activos Fijos Brutos de Comunicaciones | B43: NOTA1 | C43: 3015 | D43: =+D44+D45+D46+D47+D48 -> 1742558.14 | E43: =+E44+E45+E46+E47+E48 -> -1088199.084 | F43: =+F44+F45+F46+F47+F48 -> 654359.0563 | G43: 1
A44: Equipos de Fuerza (Planta Energía Eléctrica) | B44: NOTA1 | C44: 30151 | D44: 82824.45774 | E44: -1813.839988 | F44: 81010.61775 | G44: 1
A45: Sistemas de Gestión de Red | B45: NOTA1 | C45: 30152 | D45: 112182.3655 | E45: -18503.45853 | F45: 93678.90693 | G45: 1
A46: Equipos para Interconexión | B46: NOTA1 | C46: 30153 | D46: 0 | E46: 0 | F46: 0 | G46: 1
A47: Equipos para Circuitos Alquilados | B47: NOTA1 | C47: 30154 | D47: 0 | E47: 0 | F47: 0 | G47: 1
A48: Otros | B48: NOTA1 | C48: 30155 | D48: 1547551.317 | E48: -1067881.785 | F48: 479669.5316 | G48: 1
A49: Terreno, Edificios, Planta y Equipos no de Telecomunicaciones | B49: NOTA1 | C49: 302 | D49: =+D50+D51+D52+D53+D54+D55+D56 -> 1270053.975 | E49: =+E50+E51+E52+E53+E54+E55+E56 -> 236033.1869 | F49: =+F50+F51+F52+F53+F54+F55+F56 -> 1506087.162 | G49: 1
A50: Terrenos | B50: NOTA1 | C50: 3021 | D50: 53973.35569 | E50: 321258.4141 | F50: 375231.7698 | G50: 1
A51: Edificios | B51: NOTA1 | C51: 3022 | D51: 582813.9533 | E51: -16758.38571 | F51: 566055.5676 | G51: 1
A52: Vehículos y Ayudas Mecánicas | B52: NOTA1 | C52: 3023 | D52: 12635.86274 | E52: -1215.93159 | F52: 11419.93115 | G52: 1
A53: Equipos Sistemas Informáticos | B53: NOTA1 | C53: 3024 | D53: 23998.17852 | E53: -4657.182759 | F53: 19340.99576 | G53: 1
A54: Edificios en arrendamiento financiero | B54: NOTA1 | C54: 3025 | D54: 302176.0465 | E54: -22081.75035 | F54: 280094.2961 | G54: 1
A55: Otros activos bajo la forma de arrendamiento o leasing | B55: NOTA1 | C55: 3026 | D55: 252866.052 | E55: -30948.90309 | F55: 221917.1489 | G55: 1
A56: Otros Activos no de comunicaciones | B56: NOTA1 | C56: 3027 | D56: 41590.5264 | E56: -9563.073738 | F56: 32027.45266 | G56: 1
A57: Activos Intangibles | B57: NOTA1 | C57: 31 | D57: =+D58+D59+D60+D61+D62+D63 -> 2342189.402 | E57: =+E58+E59+E60+E61+E62+E63 -> -101214.5962 | F57: =+F58+F59+F60+F61+F62+F63 -> 2240974.806 | G57: 1
A58: Concesiones | B58: NOTA1 | C58: 311 | D58: 1774795.88 | E58: -282468.3433 | F58: 1492327.537 | G58: 1
A59: Licencias | B59: NOTA1 | C59: 312 | D59: 561959.5199 | E59: 2593.57029 | F59: 564553.0902 | G59: 1
A60: Patentes y propiedad intelectual | B60: NOTA1 | C60: 313 | D60: 0 | E60: 0 | F60: 0 | G60: 1
A61: Software | B61: NOTA1 | C61: 314 | D61: 48618.69612 | E61: -183.5371351 | F61: 48435.15898 | G61: 1
A62: Investigación y Desarrollo | B62: NOTA1 | C62: 315 | D62: 0 | E62: 0 | F62: 0 | G62: 1
A63: Otros Activos Intangibles | B63: NOTA1 | C63: 316 | D63: -43184.69398 | E63: 178843.7139 | F63: 135659.0199 | G63: 1
A64: Otros Activos No Corrientes | B64: NOTA1 | C64: 32 | D64: 0 | E64: 284578.2476 | F64: 284578.2476 | G64: 1
A65: Depreciación del Activo Fijo Bruto, y Amortización | B65: NOTA1 | C65: 33 | D65: =+D66+D98+D105 -> -3161475.382 | E65: =+E66+E98+E105 -> 500151.8507 | F65: =+F66+F98+F105 -> -2661323.531 | G65: 1
A66: Depreciación de Planta y Equipo de Comunicaciones | B66: NOTA1 | C66: 341 | D66: =+D67+D75+D76+D85+D92 -> -2010942.782 | E66: =+E67+E75+E76+E85+E92 -> 445197.3205 | F66: =+F67+F75+F76+F85+F92 -> -1565745.461 | G66: 1
A67: Equipos terminales | B67: NOTA1 | C67: 3411 | D67: =D68+D69+D70+D71+D72+D73+D74 -> -568038.6858 | E67: =E68+E69+E70+E71+E72+E73+E74 -> 38314.39893 | F67: =F68+F69+F70+F71+F72+F73+F74 -> -529724.2869 | G67: 1
A68: Equipos terminales -Teléfonos de Abonados | B68: NOTA1 | C68: 34111 | D68: -10265.39951 | E68: 438.3349283 | F68: -9827.064578 | G68: 1
A69: Equipos terminales -Teléfonos Públicos | B69: NOTA1 | C69: 34112 | D69: -42800.19381 | E69: 2875.133886 | F69: -39925.05992 | G69: 1
A70: Equipos Terminales -Televisión de Paga | B70: NOTA1 | C70: 34113 | D70: -145202.2407 | E70: 7297.206889 | F70: -137905.0338 | G70: 1
A71: Equipos Terminales -Internet Fijo | B71: NOTA1 | C71: 34114 | D71: -355426.4339 | E71: 27703.72323 | F71: -327722.7106 | G71: 1
A72: Equipos Terminales -Telefonía Móvil | B72: NOTA1 | C72: 34115 | D72: -14344.4179 | E72: 3.97903932e-15 | F72: -14344.4179 | G72: 1
A73: Equipos Terminales -Internet Móvil | B73: NOTA1 | C73: 34116 | D73: 0 | E73: 0 | F73: 0 | G73: 1
A74: Otros Equipos Terminales | B74: NOTA1 | C74: 34117 | D74: 0 | E74: 0 | F74: 0 | G74: 1
A75: Planta y Equipo de Acceso Local | B75: NOTA1 | C75: 3412 | D75: -151914.0528 | E75: 270.191755 | F75: -151643.861 | G75: 1
A76: Equipos Centrales y de agregación | B76: NOTA1 | C76: 3413 | D76: =+D77+D78+D79+D80+D81+D82+D83+D84 -> -228947.1177 | E76: =+E77+E78+E79+E80+E81+E82+E83+E84 -> 25509.92679 | F76: =+F77+F78+F79+F80+F81+F82+F83+F84 -> -203437.1909 | G76: 1
A77: Centrales Locales | B77: NOTA1 | C77: 34131 | D77: 0 | E77: 0 | F77: 0 | G77: 1
A78: Centrales de Larga Distancia Nacional | B78: NOTA1 | C78: 34132 | D78: -37924.12628 | E78: 6372.740006 | F78: -31551.38628 | G78: 1
A79: Centrales de Larga Distancia Internacional | B79: NOTA1 | C79: 34133 | D79: -664.4787559 | E79: 111.6584814 | F79: -552.8202745 | G79: 1
A80: Controladores | B80: NOTA1 | C80: 34134 | D80: -38730.76958 | E80: 1847.22964 | F80: -36883.53994 | G80: 1
A81: Gateways | B81: NOTA1 | C81: 34135 | D81: -3143.71114 | E81: 697.9913028 | F81: -2445.719837 | G81: 1
A82: Cabeceras | B82: NOTA1 | C82: 34136 | D82: -6665.26971 | E82: 406.7199592 | F82: -6258.549751 | G82: 1
A83: Transmisión de Datos (Servicio Final) | B83: NOTA1 | C83: 34137 | D83: -141818.7622 | E83: 16073.5874 | F83: -125745.1748 | G83: 1
A84: Otros equipos centrales | B84: NOTA1 | C84: 34138 | D84: 0 | E84: 0 | F84: 0 | G84: 1
A85: Transmisión (Gran capacidad) | B85: NOTA1 | C85: 3414 | D85: =+D86+D87+D88+D89+D90+D91 -> -407762.6507 | E85: =+E86+E87+E88+E89+E90+E91 -> 46407.08147 | F85: =+F86+F87+F88+F89+F90+F91 -> -361355.5692 | G85: 1
A86: Cables de Transmisión (excluidos internacional) | B86: NOTA1 | C86: 34141 | D86: -166807.206 | E86: 12561.07426 | F86: -154246.1317 | G86: 1
A87: Equipos de Transmisión (excluidos internacional) | B87: NOTA1 | C87: 34142 | D87: -113295.8558 | E87: 11492.76207 | F87: -101803.0938 | G87: 1
A88: Equipos de Transmisión Radio | B88: NOTA1 | C88: 34143 | D88: -93428.64586 | E88: 15979.28654 | F88: -77449.35932 | G88: 1
A89: Equipos de Transmisión por Satélite | B89: NOTA1 | C89: 34144 | D89: -27323.43984 | E89: 6020.839131 | F89: -21302.60071 | G89: 1
A90: Cables y Equipos internacionales (excluyendo satélite) | B90: NOTA1 | C90: 34145 | D90: -912.4533804 | E90: 82.2947001 | F90: -830.1586803 | G90: 1
A91: Otros equipos de transmisión | B91: NOTA1 | C91: 34146 | D91: -5995.04973 | E91: 270.824771 | F91: -5724.224959 | G91: 1
A92: Otros Activos Fijos Brutos de Comunicaciones | B92: NOTA1 | C92: 3415 | D92: =+D93+D94+D95+D96+D97 -> -654280.2749 | E92: =+E93+E94+E95+E96+E97 -> 334695.7216 | F92: =+F93+F94+F95+F96+F97 -> -319584.5533 | G92: 1
A93: Equipos de Fuerza (Planta Energía Eléctrica) | B93: NOTA1 | C93: 34151 | D93: -36956.66424 | E93: 4501.110824 | F93: -32455.55342 | G93: 1
A94: Sistemas de Gestión de Red | B94: NOTA1 | C94: 34152 | D94: -60195.2315 | E94: 15896.54402 | F94: -44298.68748 | G94: 1
A95: Equipos para Interconexión | B95: NOTA1 | C95: 34153 | D95: 0 | E95: 0 | F95: 0 | G95: 1
A96: Equipos para Circuitos Alquilados | B96: NOTA1 | C96: 34154 | D96: 0 | E96: 0 | F96: 0 | G96: 1
A97: Otros | B97: NOTA1 | C97: 34155 | D97: -557128.3791 | E97: 314298.0667 | F97: -242830.3124 | G97: 1
A98: Depreciación de Edificios, y Planta y Equipos no de Telecomunicaciones | B98: NOTA1 | C98: 342 | D98: =+D99+D100+D101+D102+D103+D104 -> -424683.8633 | E98: =+E99+E100+E101+E102+E103+E104 -> 54642.09582 | F98: =+F99+F100+F101+F102+F103+F104 -> -370041.7675 | G98: 1
A99: Edificios | B99: NOTA1 | C99: 3421 | D99: -109734.8307 | E99: 6683.600118 | F99: -103051.2306 | G99: 1
A100: Vehículos y Ayudas Mecánicas | B100: NOTA1 | C100: 3422 | D100: -9153.56809 | E100: 1081.53579 | F100: -8072.0323 | G100: 1
A101: Equipos Sistemas Informáticos | B101: NOTA1 | C101: 3423 | D101: -19330.74055 | E101: 4505.688709 | F101: -14825.05184 | G101: 1
A102: Edificios en arrendamiento financiero | B102: NOTA1 | C102: 3424 | D102: -89653.46751 | E102: 6525.829571 | F102: -83127.63794 | G102: 1
A103: Otros activos bajo la forma de arrendamiento o leasing | B103: NOTA1 | C103: 3425 | D103: -171269.0825 | E103: 25276.53199 | F103: -145992.5505 | G103: 1
A104: Otros Activos no de comunicaciones | B104: NOTA1 | C104: 3426 | D104: -25542.17394 | E104: 10568.90964 | F104: -14973.2643 | G104: 1
A105: Amortización de Intangibles | B105: NOTA1 | C105: 343 | D105: =+D106+D107+D108+D109+D110+D111 -> -725848.7368 | E105: =+E106+E107+E108+E109+E110+E111 -> 312.4343622 | F105: =+F106+F107+F108+F109+F110+F111 -> -725536.3025 | G105: 1
A106: Concesiones | B106: NOTA1 | C106: 3431 | D106: -463724.3745 | E106: 189052.0359 | F106: -274672.3386 | G106: 1
A107: Licencias | B107: NOTA1 | C107: 3432 | D107: -397354.2038 | E107: -3023.247641 | F107: -400377.4515 | G107: 1
A108: Patentes y propiedad intelectual | B108: NOTA1 | C108: 3433 | D108: 0 | E108: 0 | F108: 0 | G108: 1
A109: Software | B109: NOTA1 | C109: 3434 | D109: -10415.12946 | E109: 1102.779875 | F109: -9312.349585 | G109: 1
A110: Investigación y Desarrollo | B110: NOTA1 | C110: 3435 | D110: 0 | E110: 0 | F110: 0 | G110: 1
A111: Otros Activos Intangibles | B111: NOTA1 | C111: 3436 | D111: 145644.9709 | E111: -186819.1338 | F111: -41174.16287 | G111: 1
A112: Gastos contratados por anticipado a largo plazo | B112: 18 | C112: 18 | D112: 4510.995941 | E112: 0 | F112: 4510.995941
A113: Activo por impuesto a las ganancias diferido, neto | B113: 49 | C113: 49 | D113: 6508.81937 | E113: 0 | F113: 6508.81937
A114: PASIVO CORRIENTE | D114: =+D115+D116+D117+D118+D119 -> -2856740.304 | E114: =+E115+E116+E117+E118+E119 -> 77.92365 | F114: =+F115+F116+F117+F118+F119 -> -2856662.38
A115: Cuentas por pagar comerciales | B115: 42 | C115: 42 | D115: -1843235.421 | E115: 0 | F115: -1843235.421
A116: Cuentas por pagar a la principal y vinculadas | B116: 43 | C116: 43 | D116: -611943.0343 | E116: 0 | F116: -611943.0343
A117: Deuda Corto Plazo | B117: 45 | C117: 45 | D117: -0.00017 | E117: 0 | F117: -0.00017
A118: Otras cuentas por pagar | B118: 46 | C118: 46 | D118: -232587.2462 | E118: 77.92365 | F118: -232509.3226
A119: Ingresos Diferidos | B119: 491 | C119: 491 | D119: -168974.6017 | E119: 0 | F119: -168974.6017
A120: PASIVO NO CORRIENTE | D120: =+D121+D122+D123 -> -1507853.62 | E120: =+E121+E122+E123 -> 0 | F120: =+F121+F122+F123 -> -1507853.62
A121: Ingresos Diferidos | B121: 491 | C121: 491 | D121: -115432.3128 | E121: 0 | F121: -115432.3128
A122: Provisión de desmantelamiento de equipos | B122: 461 | C122: 461 | D122: -146385.262 | E122: 0 | F122: -146385.262
A123: Cuentas por pagar a la principal y vinculadas a largo plazo | B123: 471 | C123: 471 | D123: -1246036.045 | E123: 0 | F123: -1246036.045
A124: PATRIMONIO NETO | D124: =+D125+D126+D127+D128+D129+D130 -> -4700468.505 | E124: =+E125+E126+E127+E128+E129+E130 -> 3263518.356 | F124: =+F125+F126+F127+F128+F129+F130 -> -1436950.149
A125: Capital Social | B125: 50 | C125: 50 | D125: -2030882.602 | E125: 0 | F125: -2030882.602
A126: Descuento Capital | B126: 52 | C126: 52 | D126: -403.5835 | E126: 0 | F126: -403.5835
A127: Reserva Legal | B127: 58 | C127: 58 | D127: -406176.5204 | E127: 0 | F127: -406176.5204
A128: Otras Reservas | B128: 581 | C128: 581 | D128: -2801090.467 | E128: 0 | F128: -2801090.467
A129: Resultados por traslación | B129: 59 | C129: 59 | D129: -9852 | E129: 0 | F129: -9852
A130: Resultados Acumulados | B130: 591 | C130: 591 | D130: 547936.6684 | E130: 3263518.356 | F130: 3811455.024
